bitfinex/quotes_SOLUSD_20250819
["timestamp","ask_amount","ask_price","bid_price","bid_amount"]
[1755622134343,13.59559401,177.82,177.79,11.29578829]
[1755622134557,43.46,177.81,177.8,11.29578829]
[1755622134760,43.46,177.81,177.76,0.71]
[1755622135097,43.46,177.81,177.74,0.06]
[1755622135098,0.66,177.8,177.74,0.06]
[1755622135260,0.56154537,177.79,177.74,0.06]
[1755622135605,43.44,177.78,177.74,0.06]
[1755622135910,14.81713938,177.77,177.74,0.06]
[1755622136062,43.46,177.76,177.74,0.06]
[1755622136261,44.12,177.76,177.74,0.06]
[1755622136461,14.95930095,177.75,177.74,0.06]
[1755622136772,14.95930095,177.75,177.71,0.06]
[1755622136773,30.00785439,177.75,177.71,0.06]
[1755622136975,25.03354387,177.72,177.71,0.06]
[1755622137159,69.27508924,177.72,177.71,0.06]
[1755622137489,69.93508924,177.72,177.71,0.06]
[1755622137865,58.49713938,177.72,177.71,0.06]
[1755622138059,44.24154537,177.72,177.71,0.06]
[1755622138256,43.64,177.72,177.71,0.06]
[1755622138502,58.59930095,177.72,177.71,0.06]
[1755622138850,62.35160962,177.72,177.71,0.06]
[1755622138979,13.73775558,177.74,177.71,0.06]
[1755622139176,14.25559401,177.72,177.71,0.06]
[1755622139376,25.69354387,177.72,177.71,0.06]
[1755622139704,14.39775558,177.72,177.71,0.06]
[1755622140062,29.44431776,177.72,177.71,0.06]
[1755622140299,55.44431776,177.72,177.71,0.06]
[1755622140599,61.07114647,177.72,177.71,0.06]
[1755622140908,61.07114647,177.72,177.7,0.06]
[1755622140909,25.03354387,177.71,177.7,0.06]
[1755622141071,30.00586313,177.71,177.7,0.06]
[1755622142222,30.66100588,177.7,177.69,0.06]
[1755622142500,78.77177977,177.7,177.69,0.06]
[1755622142797,67.47599148,177.7,177.69,0.06]
[1755622142993,78.77177977,177.7,177.69,0.06]
[1755622143395,35.07177977,177.7,177.69,0.06]
[1755622143701,78.75177977,177.7,177.69,0.06]
[1755622144075,35.63332514,177.7,177.69,0.06]
[1755622144373,79.31332514,177.7,177.69,0.06]
[1755622144772,25.03354387,177.69,177.68,0.06]
[1755622144975,29.44431776,177.69,177.68,0.06]
[1755622146272,35.07209647,177.69,177.68,0.06]
[1755622147819,35.07209647,177.69,177.57,0.71]
[1755622147820,26.0,177.64,177.57,0.71]
[1755622147979,11.29578829,177.58,177.54,0.71]
[1755622148297,11.29578829,177.56,177.54,0.71]
[1755622148464,43.58,177.55,177.54,0.71]
[1755622148793,43.58,177.55,177.53,41.6338585]
[1755622149167,11.85733366,177.6,177.54,12.00578829]
[1755622149369,43.56,177.59,177.55,0.71]
[1755622149674,54.85578829,177.59,177.56,0.71]
[1755622149875,54.85578829,177.59,177.54,12.00578829]
[1755622150136,43.56,177.59,177.55,0.71]
[1755622150411,0.56154537,177.63,177.58,11.29578829]
[1755622150571,43.52,177.62,177.59,12.00578829]
[1755622150765,43.52,177.62,177.59,0.71]
[1755622150962,43.52,177.62,177.56,26.0]
[1755622151195,11.85733366,177.61,177.56,0.71]
[1755622151406,43.5,177.6,177.57,12.00578829]
[1755622151578,43.5,177.6,177.58,0.71]
[1755622151779,43.5,177.6,177.58,11.29578829]
[1755622151981,43.5,177.6,177.59,0.71]
[1755622152587,0.56154537,177.7,177.62,26.0]
[1755622152789,16.928589,177.72,177.63,0.71]
[1755622152996,43.46,177.71,177.67,11.29578829]
[1755622153195,43.46,177.71,177.67,12.00578829]
[1755622153400,14.81713938,177.7,177.63,0.71]
[1755622153602,11.29578829,177.66,177.61,11.29578829]
[1755622153781,31.6568403,177.72,177.6,12.00578829]
[1755622153782,55.31733366,177.65,177.6,12.00578829]
[1755622154401,55.31733366,177.65,177.6,11.29578829]
[1755622154618,55.31733366,177.65,177.61,0.71]
[1755622154822,11.29578829,177.66,177.62,0.71]
[1755622155135,11.29578829,177.66,177.58,26.0]
[1755622155136,11.85733366,177.68,177.63,12.00578829]
[1755622155303,43.4,177.67,177.64,0.71]
[1755622155502,43.4,177.67,177.65,0.71]
[1755622155936,43.4,177.67,177.63,11.29578829]
[1755622156138,11.29578829,177.65,177.59,11.29578829]
[1755622156316,54.67578829,177.64,177.59,11.29578829]
[1755622156628,43.38,177.64,177.6,0.71]
[1755622156836,43.38,177.64,177.61,12.00578829]
[1755622157009,43.38,177.64,177.6,11.29578829]
[1755622157202,43.38,177.64,177.6,12.00578829]
[1755622157403,43.34,177.63,177.61,0.71]
[1755622157735,0.66,177.67,177.62,12.00578829]
[1755622157736,11.29578829,177.67,177.62,12.00578829]
[1755622157923,43.32,177.66,177.62,12.00578829]
[1755622158938,11.29578829,177.64,177.59,37.29578829]
[1755622159118,43.32,177.63,177.59,37.29578829]
[1755622160436,11.29578829,177.6,177.55,37.29578829]
[1755622160729,43.24,177.59,177.56,11.29578829]
[1755622160938,43.24,177.59,177.54,0.71]
[1755622161234,55.19578829,177.59,177.54,11.29578829]
[1755622161440,11.85733366,177.58,177.53,41.6938585]
[1755622161648,0.66,177.57,177.53,41.6938585]
[1755622161808,43.2,177.56,177.53,41.6938585]
[1755622162013,43.2,177.56,177.54,0.71]
[1755622162245,43.2,177.56,177.53,52.98964679]
[1755622162431,43.2,177.56,177.53,41.6938585]
[1755622162828,43.2,177.56,177.53,52.98964679]
[1755622163022,43.2,177.56,177.53,41.6938585]
[1755622163345,11.29578829,177.61,177.55,11.29578829]
[1755622163530,43.2,177.6,177.57,11.29578829]
[1755622163842,43.2,177.6,177.55,0.71]
[1755622164049,11.29578829,177.59,177.53,41.6938585]
[1755622164236,11.95578829,177.59,177.54,11.29578829]
[1755622164422,55.05733366,177.6,177.55,11.29578829]
[1755622164622,55.05733366,177.6,177.54,0.71]
[1755622164821,55.05733366,177.6,177.55,11.29578829]
[1755622165037,0.66,177.59,177.54,12.00578829]
[1755622165347,43.18,177.58,177.53,41.6938585]
[1755622165542,43.84,177.58,177.54,11.29578829]
[1755622165865,43.18,177.58,177.54,11.29578829]
[1755622166025,0.56154537,177.59,177.55,11.29578829]
[1755622166341,43.14,177.58,177.54,11.29578829]
[1755622166715,0.66,177.57,177.53,41.6938585]
[1755622166949,0.66,177.57,177.53,52.98964679]
[1755622167628,43.70154537,177.58,177.53,41.6938585]
[1755622167838,54.99733366,177.58,177.53,41.6938585]
[1755622168018,55.65733366,177.58,177.53,53.69964679]
[1755622168218,131.0,177.61,177.57,11.29578829]
[1755622168421,131.0,177.61,177.54,0.71]
[1755622168422,43.12,177.6,177.58,0.71]
[1755622168628,43.12,177.59,177.58,0.71]
[1755622168949,43.12,177.59,177.56,26.0]
[1755622169330,43.12,177.59,177.57,0.71]
[1755622170352,43.12,177.59,177.56,26.0]
[1755622170533,43.12,177.59,177.56,37.29578829]
[1755622170961,43.12,177.59,177.56,26.71]
[1755622171123,43.1,177.58,177.57,11.29578829]
[1755622171328,43.1,177.58,177.57,12.00578829]
[1755622171729,43.1,177.58,177.56,26.0]
[1755622171931,43.1,177.58,177.57,11.29578829]
[1755622172458,43.1,177.58,177.56,37.29578829]
[1755622172830,43.1,177.58,177.56,26.0]
[1755622173338,0.68,177.57,177.53,41.6938585]
[1755622173522,0.68,177.56,177.53,41.6938585]
[1755622173727,11.29578829,177.57,177.53,41.6938585]
[1755622173728,0.68,177.55,177.53,41.6938585]
[1755622173954,43.06,177.54,177.53,41.6938585]
[1755622174158,43.74,177.54,177.53,41.6938585]
[1755622174533,68.6313823,177.54,177.53,41.6938585]
[1755622174743,67.9513823,177.54,177.53,41.6938585]
[1755622174954,68.6313823,177.54,177.53,41.6938585]
[1755622175765,69.33508924,177.54,177.53,41.6938585]
[1755622175971,74.96762275,177.54,177.53,41.6938585]
[1755622177760,14.83713938,177.54,177.53,41.6938585]
[1755622177961,68.67354387,177.54,177.53,41.6938585]
[1755622178363,26.27508924,177.54,177.53,41.6938585]
[1755622178573,13.59559401,177.55,177.53,41.6938585]
[1755622178776,43.6,177.54,177.53,41.6938585]
[1755622179486,25.5713823,177.54,177.53,41.6938585]
[1755622179665,69.03292767,177.54,177.53,41.6938585]
[1755622179866,69.17508924,177.54,177.53,41.6938585]
[1755622180458,57.87930095,177.54,177.53,41.6938585]
[1755622180663,69.17508924,177.54,177.53,41.6938585]
[1755622180864,57.87930095,177.54,177.53,41.6938585]
[1755622181181,56.49559401,177.54,177.53,41.6938585]
[1755622181490,67.7913823,177.54,177.53,41.6938585]
[1755622181995,0.56154537,177.55,177.53,41.6938585]
[1755622182168,42.9,177.54,177.53,41.6938585]
[1755622182495,14.15713938,177.57,177.53,41.6938585]
[1755622182666,11.29578829,177.58,177.54,0.68]
[1755622182867,42.9,177.57,177.54,0.68]
[1755622183085,42.9,177.57,177.53,41.6938585]
[1755622183280,42.9,177.57,177.53,53.66964679]
[1755622183472,11.29578829,177.55,177.53,41.6938585]
[1755622183791,42.9,177.54,177.53,41.6938585]
[1755622184209,54.19578829,177.54,177.53,41.6938585]
[1755622184977,42.9,177.54,177.53,41.6938585]
[1755622185471,14.15713938,177.56,177.53,41.6938585]
[1755622185675,54.19578829,177.55,177.53,41.6938585]
[1755622186106,42.9,177.55,177.53,41.6938585]
[1755622186280,54.19578829,177.55,177.53,41.6938585]
[1755622187190,54.75733366,177.55,177.53,41.6938585]
[1755622187816,0.56154537,177.55,177.53,41.6938585]
[1755622187979,42.9,177.54,177.53,41.6938585]
[1755622188687,42.9,177.54,177.53,42.3738585]
[1755622188889,131.0,177.56,177.53,42.3738585]
[1755622189092,131.0,177.56,177.54,0.68]
[1755622189273,131.0,177.56,177.55,11.97578829]
[1755622189482,40.62,177.62,177.55,11.97578829]
[1755622189775,42.9,177.61,177.56,0.68]
[1755622190026,11.29578829,177.6,177.54,11.29578829]
[1755622190179,42.9,177.59,177.55,11.29578829]
[1755622190377,42.9,177.59,177.55,11.97578829]
[1755622190591,42.9,177.59,177.55,0.68]
[1755622191118,42.9,177.59,177.56,11.97578829]
[1755622191275,42.9,177.59,177.57,11.97578829]
[1755622191474,42.9,177.59,177.57,0.68]
[1755622192110,42.9,177.59,177.55,11.29578829]
[1755622192472,40.62,177.62,177.58,11.29578829]
[1755622192691,42.9,177.61,177.54,26.0]
[1755622192911,11.29578829,177.59,177.54,37.29578829]
[1755622193077,42.88,177.58,177.54,37.29578829]
[1755622193474,43.56,177.58,177.54,26.0]
[1755622193989,43.56,177.58,177.53,52.98964679]
[1755622193990,11.29578829,177.55,177.53,41.6938585]
[1755622194290,42.88,177.54,177.53,41.6938585]
[1755622194694,54.17578829,177.54,177.53,41.6938585]
[1755622194895,54.85578829,177.54,177.53,41.6938585]
[1755622195280,54.17578829,177.54,177.53,41.6938585]
[1755622195517,42.88,177.54,177.53,41.6938585]
[1755622195816,54.85578829,177.54,177.53,41.6938585]
[1755622196983,43.56,177.54,177.53,41.6938585]
[1755622197402,68.4513823,177.54,177.53,41.6938585]
[1755622197603,74.08391581,177.54,177.53,41.6938585]
[1755622197802,74.22607738,177.54,177.53,41.6938585]
[1755622198190,77.95666097,177.54,177.53,41.6938585]
[1755622199753,78.51820634,177.54,177.53,41.6938585]
[1755622201656,30.00567283,177.54,177.53,41.6938585]
[1755622201807,78.51820634,177.54,177.53,41.6938585]
[1755622202007,35.63820634,177.54,177.53,41.6938585]
[1755622202236,78.51820634,177.54,177.53,41.6938585]
[1755622202421,72.88567283,177.54,177.53,41.6938585]
[1755622202912,104.51820634,177.54,177.53,41.6938585]
[1755622203539,98.88567283,177.54,177.53,41.6938585]
[1755622203837,104.51820634,177.54,177.53,41.6938585]
[1755622204298,61.63820634,177.54,177.53,41.6938585]
[1755622204505,61.44772297,177.54,177.53,41.6938585]
[1755622204725,72.88567283,177.54,177.53,41.6938585]
[1755622204920,78.51820634,177.54,177.53,41.6938585]
[1755622207607,67.22241805,177.54,177.53,41.6938585]
[1755622207815,13.73775558,177.53,177.52,0.06]
[1755622208048,39.73775558,177.5,177.49,0.06]
[1755622208205,86.90988454,177.5,177.49,0.06]
[1755622208411,87.56988454,177.5,177.49,0.06]
[1755622209524,87.56988454,177.5,176.96,21.11343302]
[1755622209525,13.59559401,177.41,177.35,200.14361381]
[1755622209742,13.59559401,177.39,177.35,200.14361381]
[1755622210041,54.17578829,177.38,177.36,0.69]
[1755622210260,54.17578829,177.37,177.35,197.88430081]
[1755622210456,54.17578829,177.36,177.35,197.88430081]
[1755622210628,54.17578829,177.36,177.35,198.57430081]
[1755622210827,42.9,177.37,177.35,198.57430081]
[1755622211153,42.9,177.37,177.36,0.69]
[1755622211832,0.56154537,177.44,177.36,26.69]
[1755622212029,11.29578829,177.43,177.37,0.69]
[1755622212244,1.22154537,177.42,177.35,198.57430081]
[1755622212552,1.22154537,177.42,177.35,197.88430081]
[1755622212553,40.15713938,177.41,177.35,197.88430081]
[1755622212754,0.14216157,177.39,177.35,197.88430081]
[1755622213054,11.29578829,177.36,177.35,197.88430081]
[1755622213350,54.17578829,177.36,177.35,198.57430081]
[1755622213647,54.17578829,177.36,177.35,197.88430081]
[1755622213852,42.88,177.36,177.35,198.57430081]
[1755622214081,1.22154537,177.44,177.35,198.57430081]
[1755622214286,11.29578829,177.42,177.36,11.98578829]
[1755622214458,54.19578829,177.41,177.35,209.1800891]
[1755622214659,11.29578829,177.4,177.37,0.69]
[1755622214873,11.29578829,177.39,177.38,0.69]
[1755622215078,42.9,177.4,177.38,11.98578829]
[1755622215276,42.9,177.42,177.39,11.98578829]
[1755622215583,42.9,177.43,177.4,0.69]
[1755622215775,42.9,177.43,177.38,26.0]
[1755622215963,11.29578829,177.41,177.38,26.0]
[1755622216282,42.9,177.4,177.38,26.0]
[1755622216488,54.19578829,177.4,177.35,198.57430081]
[1755622216664,11.29578829,177.38,177.36,0.69]
[1755622217184,42.9,177.37,177.35,197.88430081]
[1755622217392,42.9,177.37,177.35,198.57430081]
[1755622217595,42.9,177.37,177.36,0.69]
[1755622217959,54.19578829,177.37,177.35,197.88430081]
[1755622218159,54.19578829,177.37,177.35,198.57430081]
[1755622218663,42.9,177.37,177.35,198.57430081]
[1755622218864,54.19578829,177.37,177.35,198.57430081]
[1755622219102,54.19578829,177.37,177.35,197.88430081]
[1755622219592,54.19578829,177.37,177.36,0.06]
[1755622220569,42.9,177.37,177.36,0.75]
[1755622221207,42.9,177.37,177.36,12.04578829]
[1755622221366,42.9,177.37,177.36,0.75]
[1755622222491,42.9,177.37,177.36,0.06]
[1755622222810,42.9,177.37,177.36,0.75]
[1755622222986,42.9,177.37,177.36,0.06]
[1755622224099,42.9,177.37,177.36,12.04578829]
[1755622224304,42.9,177.37,177.36,0.75]
[1755622224730,42.9,177.37,177.36,0.06]
[1755622225232,42.9,177.37,177.36,12.04578829]
[1755622225530,42.9,177.37,177.36,0.06]
[1755622226237,42.9,177.37,177.36,0.75]
[1755622227529,131.0,177.43,177.36,12.04578829]
[1755622227696,42.9,177.39,177.36,0.06]
[1755622227897,11.95578829,177.44,177.37,0.69]
[1755622228130,4.93501524,177.47,177.38,26.0]
[1755622228304,42.9,177.46,177.39,0.69]
[1755622228507,14.95930095,177.45,177.36,0.06]
[1755622228927,11.29578829,177.39,177.36,0.06]
[1755622229148,131.66,177.44,177.36,0.06]
[1755622229149,11.29578829,177.37,177.36,0.06]
[1755622229536,11.95578829,177.37,177.36,0.06]
[1755622229749,25.69354387,177.37,177.36,0.06]
[1755622229949,13.73775558,177.36,177.35,197.88430081]
[1755622230253,13.73775558,177.35,177.34,0.06]
[1755622230444,26.14216157,177.32,177.31,0.06]
[1755622230749,79.87949523,177.32,177.31,0.06]
[1755622230955,98.00088731,177.32,177.31,0.06]
[1755622231254,0.14216157,177.31,177.23,0.16652789]
[1755622231441,25.03354387,177.27,177.23,0.16652789]
[1755622231616,13.73775558,177.26,177.23,0.16652789]
[1755622231816,50.66,177.3,177.23,0.16652789]
[1755622231817,25.03354387,177.24,177.23,0.16652789]
[1755622232020,30.67561112,177.24,177.23,0.16652789]
[1755622232523,75.83875912,177.24,177.23,0.16652789]
[1755622233549,93.93354387,177.24,177.23,0.16652789]
[1755622233720,94.49508924,177.24,177.23,0.16652789]
[1755622233921,100.13715649,177.24,177.23,0.16652789]
[1755622234150,57.19930095,177.24,177.23,0.16652789]
[1755622234352,62.8413682,177.24,177.23,0.16652789]
[1755622234551,74.13715649,177.24,177.23,0.16652789]
[1755622234921,76.40030449,177.24,177.23,0.16652789]
[1755622235122,102.40030449,177.24,177.23,0.16652789]
[1755622235357,91.1045162,177.24,177.23,0.16652789]
[1755622235569,91.1045162,177.24,177.23,0.87652789]
[1755622235570,2.82469337,177.24,177.23,0.87652789]
[1755622235864,42.92,177.24,177.23,0.16652789]
[1755622236152,56.51559401,177.24,177.23,0.16652789]
[1755622236458,43.48154537,177.24,177.23,0.16652789]
[1755622236676,74.15715649,177.24,177.23,0.16652789]
[1755622237068,13.73775558,177.23,177.19,1.17744043]
[1755622237244,25.03354387,177.23,177.21,0.06]
[1755622237751,25.03354387,177.23,177.19,1.17744043]
[1755622237752,39.59559401,177.2,177.19,1.17744043]
[1755622237949,68.51508924,177.2,177.19,1.17744043]
[1755622238165,0.14216157,177.15,177.14,200.0]
[1755622238377,0.56154537,177.15,177.14,200.71]
[1755622238671,42.92,177.15,177.14,200.0]
[1755622239205,54.21578829,177.15,177.14,200.0]
[1755622239361,42.92,177.15,177.14,200.0]
[1755622239556,42.92,177.15,177.14,200.71]
[1755622239756,42.92,177.15,177.14,200.0]
[1755622239992,42.92,177.15,177.14,200.71]
[1755622240156,68.37292767,177.15,177.14,200.0]
[1755622240661,26.0,177.16,177.14,200.0]
[1755622240662,0.56154537,177.16,177.14,200.0]
[1755622240910,43.04,177.15,177.14,200.71]
[1755622241191,43.04,177.15,177.14,200.0]
[1755622241602,0.56154537,177.19,177.14,200.71]
[1755622241808,43.1,177.15,177.14,200.0]
[1755622241969,43.1,177.15,177.14,211.29578829]
[1755622242163,54.39578829,177.15,177.14,200.0]
[1755622242499,68.13354387,177.15,177.14,200.0]
[1755622242706,68.69508924,177.15,177.14,200.0]
[1755622243207,60.3505732,177.15,177.14,200.0]
[1755622243720,46.89497919,177.15,177.14,200.71]
[1755622243864,43.24,177.15,177.14,200.71]
[1755622244066,2.95096454,177.2,177.14,200.71]
[1755622244284,2.95096454,177.2,177.19,11.29578829]
[1755622244490,43.58,177.19,177.15,0.71]
[1755622244686,0.59154537,177.26,177.18,11.29578829]
[1755622245017,0.03,177.26,177.19,0.71]
[1755622245308,43.6,177.25,177.19,0.71]
[1755622245596,0.03,177.28,177.24,11.29578829]
[1755622245796,0.03,177.28,177.27,11.29578829]
[1755622246099,43.64,177.27,177.23,11.29578829]
[1755622246308,0.56154537,177.26,177.2,16.961131]
[1755622246504,11.29578829,177.23,177.14,200.0]
[1755622246664,0.56154537,177.22,177.16,0.71]
[1755622246866,0.56154537,177.25,177.21,11.29578829]
[1755622247103,43.68,177.24,177.22,12.00578829]
[1755622247278,43.68,177.23,177.22,12.00578829]
[1755622247608,42.96,177.23,177.22,11.29578829]
[1755622247778,43.68,177.27,177.22,22.59157658]
[1755622247982,43.68,177.27,177.23,0.71]
[1755622248220,43.68,177.27,177.26,11.29578829]
[1755622248385,43.68,177.27,177.25,11.29578829]
[1755622248704,43.68,177.27,176.74,79.9]
[1755622248705,11.99578829,177.26,177.18,0.71]
[1755622248897,11.29578829,177.23,177.18,11.29578829]
[1755622249221,0.7,177.26,177.14,200.06]
[1755622249222,11.29578829,177.19,177.14,200.06]
[1755622249417,11.29578829,177.16,177.14,200.06]
[1755622249569,0.14216157,177.17,177.14,200.06]
[1755622249771,43.8,177.15,177.14,200.06]
[1755622250700,43.8,177.15,177.14,211.35578829]
[1755622250873,142.85733366,177.19,177.14,200.06]
[1755622251071,43.84,177.15,177.14,200.06]
[1755622251784,44.54,177.15,177.14,200.06]
[1755622252180,55.83578829,177.15,177.14,200.06]
[1755622252479,44.54,177.15,177.14,200.06]
[1755622252802,43.84,177.15,177.14,200.06]
[1755622253590,43.82,177.15,177.14,200.06]
[1755622255536,43.82,177.15,177.14,211.35578829]
[1755622255914,43.76,177.15,177.14,212.06578829]
[1755622257302,43.78,177.15,177.14,200.77]
[1755622257543,43.78,177.15,177.14,212.06578829]
[1755622257709,43.78,177.15,177.14,200.77]
[1755622257907,43.78,177.17,177.14,212.06578829]
[1755622258108,43.78,177.17,177.16,11.29578829]
[1755622258306,43.96,177.17,177.16,11.29578829]
[1755622258706,43.96,177.17,177.16,4.91258029]
[1755622258907,43.96,177.17,177.15,0.71]
[1755622259262,43.96,177.17,177.14,200.06]
[1755622259404,43.96,177.17,177.16,11.29578829]
[1755622259608,43.96,177.17,177.14,200.06]
[1755622260124,43.96,177.17,177.16,11.29578829]
[1755622260645,1.26154537,177.23,177.16,12.00578829]
[1755622260845,1.26154537,177.23,177.14,200.06]
[1755622260846,40.73,177.27,177.22,11.29578829]
[1755622261006,43.92,177.24,177.19,0.71]
[1755622261209,43.92,177.24,177.23,11.29578829]
[1755622262542,41.43,177.27,177.23,12.00578829]
[1755622262543,40.73,177.27,177.23,12.00578829]
[1755622262842,43.94,177.25,177.19,26.0]
[1755622263072,0.03,177.27,177.24,0.71]
[1755622263358,0.03,177.28,177.24,0.71]
[1755622263560,0.03,177.32,177.24,0.71]
[1755622263762,1.21069708,177.36,177.25,13.59559401]
[1755622263930,1.21069708,177.36,177.35,11.29578829]
[1755622264128,1.21069708,177.36,177.35,11.97578829]
[1755622264430,43.92,177.4,177.35,11.97578829]
[1755622264629,0.03,177.43,177.39,11.29578829]
[1755622264833,0.2,177.44,177.42,11.29578829]
[1755622265138,15.00722648,177.55,177.43,11.29578829]
[1755622265139,2.93971249,177.53,177.43,11.29578829]
[1755622265444,2.93971249,177.53,177.52,22.59157658]
[1755622265654,2.93971249,177.53,177.52,23.27157658]
[1755622265862,9.375,177.55,177.52,23.27157658]
[1755622266036,9.375,177.55,177.54,11.29578829]
[1755622266356,2.93894604,177.57,177.54,17.40491381]
[1755622266527,44.06,177.63,177.54,0.68]
[1755622266958,46.99745824,177.63,177.62,16.72491381]
[1755622267142,44.08,177.64,177.62,16.72491381]
[1755622267356,0.69,177.63,177.54,0.68]
[1755622267529,0.69,177.63,177.62,16.72491381]
[1755622267865,0.72,177.7,177.62,17.40491381]
[1755622268160,0.59154537,177.7,177.66,16.72491381]
[1755622268376,1.28154537,177.68,177.58,0.68]
[1755622268669,0.03,177.68,177.67,16.72491381]
[1755622269038,0.72,177.68,177.59,0.68]
[1755622269560,0.72,177.68,177.55,16.92859]
[1755622269561,0.56154537,177.67,177.65,16.72491381]
[1755622269734,0.03,177.68,177.66,16.72491381]
[1755622269933,0.69,177.67,177.66,16.72491381]
[1755622270135,0.03,177.68,177.66,16.72491381]
[1755622270326,0.69,177.67,177.56,0.68]
[1755622270539,0.56154537,177.66,177.62,16.72491381]
[1755622270737,0.56154537,177.66,177.65,16.72491381]
[1755622270946,0.03,177.68,177.65,16.72491381]
[1755622271164,0.03,177.68,177.67,16.72491381]
[1755622271366,0.03,177.68,177.51,44.28]
[1755622271367,13.73775558,177.67,177.51,44.28]
[1755622271565,13.59559401,177.65,177.61,16.72491381]
[1755622271767,13.59559401,177.65,177.54,26.68]
[1755622271768,45.03,177.64,177.54,26.68]
[1755622272081,0.03,177.65,177.63,16.72491381]
[1755622272377,0.03,177.65,177.64,17.40491381]
[1755622272542,0.03,177.65,177.64,16.72491381]
[1755622272741,0.03,177.65,177.58,26.0]
[1755622272946,0.03,177.65,177.64,16.72491381]
[1755622273373,0.03,177.65,177.58,26.0]
[1755622273653,0.03,177.65,177.64,16.72491381]
[1755622273982,13.59559401,177.64,177.6,16.72491381]
[1755622274140,0.69,177.63,177.55,16.92859]
[1755622274344,14.15713938,177.62,177.57,16.72491381]
[1755622274581,13.59559401,177.6,177.51,0.68]
[1755622274764,44.28,177.61,177.51,0.68]
[1755622275146,44.84154537,177.61,177.58,16.72491381]
[1755622275346,31.01050782,177.6,177.55,16.72491381]
[1755622275545,31.01050782,177.6,177.5,16.934323]
[1755622275775,16.72491381,177.54,177.48,16.72491381]
[1755622275960,0.56154537,177.53,177.49,16.72491381]
[1755622276165,44.28,177.54,177.52,16.72491381]
[1755622276681,44.28,177.57,177.53,16.72491381]
[1755622276871,44.28,177.57,177.56,16.72491381]
[1755622277052,44.28,177.57,177.49,0.68]
[1755622277253,44.28,177.57,177.56,16.72491381]
[1755622277859,44.28,177.57,177.52,0.68]
[1755622278062,44.28,177.57,177.56,16.72491381]
[1755622278677,44.97,177.57,177.48,26.68]
[1755622278884,14.84713938,177.56,177.43,0.68]
[1755622279063,14.84713938,177.56,177.53,16.72491381]
[1755622279271,14.28559401,177.55,177.51,16.72491381]
[1755622279482,0.69,177.54,177.52,16.72491381]
[1755622279882,13.59559401,177.55,177.52,16.72491381]
[1755622280063,13.59559401,177.55,177.45,17.619104]
[1755622280273,1.25154537,177.54,177.5,16.72491381]
[1755622280478,0.69,177.53,177.5,16.72491381]
[1755622280771,0.69,177.53,177.44,26.0]
[1755622280772,44.95,177.52,177.49,16.72491381]
[1755622280969,1.25154537,177.51,177.47,16.72491381]
[1755622281169,0.69,177.5,177.47,16.72491381]
[1755622281367,0.56154537,177.51,177.47,16.72491381]
[1755622281368,0.69,177.49,177.47,16.72491381]
[1755622281693,0.56154537,177.51,177.48,16.72491381]
[1755622282001,0.56154537,177.51,177.42,0.68]
[1755622282002,1.25154537,177.51,177.42,0.68]
[1755622282192,0.69,177.5,177.48,16.72491381]
[1755622282996,44.2,177.52,177.49,16.72491381]
[1755622283162,14.84713938,177.51,177.47,16.72491381]
[1755622283484,0.69,177.5,177.47,16.72491381]
[1755622283687,0.69,177.49,177.47,16.72491381]
[1755622284065,0.69,177.49,177.4,17.619104]
[1755622284265,0.69,177.49,177.48,16.72491381]
[1755622284497,0.69,177.49,177.47,16.72491381]
[1755622284997,0.69,177.49,177.46,16.72491381]
[1755622285201,1.25154537,177.48,177.4,0.68]
[1755622285364,1.25154537,177.48,177.43,16.72491381]
[1755622285365,57.73559401,177.47,177.43,16.72491381]
[1755622285564,0.69,177.46,177.43,16.72491381]